Cogmind - Beta 16 @@@ ROGUE MODE // 2026.01.06 @ 16:07:05 Player: AngelSpirit Result: Destroyed by SV-K17(R) with Subdweller Laser Performance ------------- Evolutions (0) 0 Regions Visited (2) 400 Robots Destroyed (23) 115 Value Destroyed (396) 396 Prototype IDs (0) 0 Alien Tech Used (0) 0 Bonus (0) 0 TOTAL SCORE: 911 Bonus ------- None Cogmind --------- Core Integrity 0/250 Matter 165/300 Energy 125/125 System Corruption 0% Temperature Cool (6) Movement Rolling (140) Ox4 Location -10/Subcaves Parts ------- > --- POWER (1) -------- Light Ion Engine > --- PROPULSION (2) --- Wheel Wheel > --- UTILITY (2) ------ Huge Storage Unit Seismic Detector > --- WEAPON (2) ------- Shotgun Battle Cannon > --- INVENTORY (25) --- Wheel Medium Storage Unit Large Storage Unit High-capacity Matter Pod (184) Sensor Array Backup Plating I Hacking Suite Shotgun Shotgun Peak State ------------ > --- POWER ------------ Light Ion Engine > --- PROPULSION ------- Wheel Wheel > --- UTILITY ---------- Huge Storage Unit Seismic Detector > --- WEAPON ----------- Heavy EM Pulse Gun Heavy EM Pulse Gun > --- INVENTORY -------- Wheel Medium Storage Unit Large Storage Unit High-capacity Matter Pod Sensor Array Backup Plating I Hacking Suite Mining Claw [Rating: 10] Favorites ----------- Power Ion Engine Engine Ion Engine Propulsion Wheel Wheel Wheel Utility Seismic Detector Device Seismic Detector Storage Huge Storage Unit Protection Backup Plating I Weapon Medium Laser Energy Gun Medium Laser Ballistic Gun Shotgun Ballistic Cannon Battle Cannon Slashing Weapon Mining Claw Build | -11 -10 -10 ------- Run | Yrd Mat Sub Slots Evolved . | . . . Power . | . . . Propulsion . | . . . Utility . | . . . Weapon . | . . . Parts Attached 22 | 6 14 2 Power 2 | 1 1 . Engine 2 | 1 1 . Core . | . . . Reactor . | . . . Propulsion 5 | 2 3 . Treads . | . . . Leg . | . . . Wheel 5 | 2 3 . Hover . | . . . Flight . | . . . Utility 5 | 1 3 1 Device 1 | . 1 . Storage 3 | 1 2 . Processor . | . . . Hackware . | . . . Protection 1 | . . 1 Artifact . | . . . Weapon 10 | 2 7 1 Energy Gun 4 | 1 3 . Energy Cannon . | . . . Ballistic Gun 4 | 1 3 . Ballistic Cannon 1 | . . 1 Launcher . | . . . Special Weapon . | . . . Impact Weapon . | . . . Slashing Weapon 1 | . 1 . Piercing Weapon . | . . . Special Melee Weapon . | . . . Unidentified Prototypes . | . . . Parts Lost 5 | . 5 . Power . | . . . Propulsion 3 | . 3 . Utility . | . . . Weapon 2 | . 2 . Highest Loss Streak 2 | . 2 . To Critical Strikes . | . . . Average Backups 6 | . 6 9 Power . | . . . Propulsion . | . . 1 Utility 3 | . 3 6 Weapon 1 | . 1 2 Tool/Special . | . . . Unused Backups 7 | . . 7 Power . | . . . Propulsion 1 | . . 1 Utility 4 | . . 4 Weapon 2 | . . 2 Tool/Special . | . . . Average Slot Usage (%) 97 | . 96 99 Engine 14 | . 14 14 Wheel 27 | . 27 28 Device 12 | . 12 12 Storage 14 | . 14 14 Energy Gun 10 | . 12 . Ballistic Gun 16 | . 14 22 Peak Build Rating 10 | 6 10 10 Average Rating 7 | 4 7 9 On Entrance 5 | . 6 10 Avg Prop Armor Cover (%) . | . . . Naked Turns . | . . . Heaviest Build 90 | 14 90 90 Greatest Support 20 | 20 20 20 Greatest Overweight (x) 8 | . 8 4 Average Overweight (x) 2 | . 2 4 Largest Inventory Capacity 25 | 8 25 25 Average Capacity 20 | 7 19 25 Most Carried 10 | 1 10 9 Average Carried 6 | . 6 9 Final Capacity 25 | 8 25 25 Final Carried 9 | 1 9 9 Class Distribution -------------------- 100% | Mutant Dominant Class ---------------- Mutant | -10/Materials Mutant | -10/Subcaves Resources | -11 -10 -10 ----------- Run | Yrd Mat Sub Matter Collected 744 | 225 506 13 Remotely . | . . . Salvage Created 572 | . 559 13 Parts 52 | . 51 1 Haulers Intercepted 2 | . 2 . Recyclers Shooed . | . . . Parts Field Recycled . | . . . Retrieved Matter . | . . . Parts Self-Destructed 4 | . . 4 Prevented . | . . . Parts Restored . | . . . Kills | -11 -10 -10 ------- Run | Yrd Mat Sub Combat Hostiles Destroyed 14 | . 13 1 Guns 14 | . 13 1 Classes Destroyed 7 | . 6 1 Worker 2 | . 2 . Hauler 2 | . 2 . Operator 3 | . 3 . Watcher 2 | . 2 . Swarmer 8 | . 8 . Grunt 5 | . 5 . Subdweller 1 | . . 1 Best Kill Streak 5 | . 5 1 Combat Bots Only 5 | . 5 1 Max Kills in Single Turn 1 | . 1 1 Gunslinging . | . . . Exploded . | . . . Melee . | . . . Uniques/NPCs Destroyed . | . . . Combat | -11 -10 -10 -------- Run | Yrd Mat Sub Hostile Shots Fired 114 | . 103 11 Missed 35 | . 33 2 Hits 79 | . 70 9 Projectile 79 | . 70 9 Damage Taken 906 | . 733 173 Core 255 | . 200 55 Absorbed by Shields . | . . . Core Remaining (%) 100 | 100 . . Volleys Fired 85 | . 73 12 Largest 2 | . 2 2 Hottest 70 | . 70 46 Shots Fired 163 | . 145 18 Gun 157 | . 145 12 Cannon 6 | . . 6 Launcher . | . . . Special . | . . . Kinetic 90 | . 72 18 Thermal 73 | . 73 . Explosive . | . . . Electromagnetic . | . . . Robot Hit Streak 11 | . 11 10 Robot Miss Streak 5 | . 5 2 Penetration Max . | . . . Secondary Targets . | . . . Shots Hit Robots 102 | . 85 17 Core Hits 38 | . 34 4 Critical Kills . | . . . Critical Parts Destroyed . | . . . Critical Strikes 4 | . 4 . Burn 4 | . 4 . Melee Attacks 2 | . 2 . Impact . | . . . Slashing 2 | . 2 . Piercing . | . . . Sneak Attacks . | . . . Combat Hostiles . | . . . Follow-up Attacks . | . . . Damage Inflicted 1320 | . 1017 303 Guns 1207 | . 1017 190 Cannons 113 | . . 113 Explosions . | . . . Melee . | . . . Ramming . | . . . Kinetic 822 | . 519 303 Thermal 498 | . 498 . Explosive . | . . . Electromagnetic . | . . . Impact . | . . . Slashing . | . . . Piercing . | . . . Highest Corruption . | . . . Average Corruption . | . . . Corruption Purged . | . . . Corruption Blocked . | . . . Overload Shots . | . . . Overflow Damage . | . . . Projectiles . | . . . Explosions . | . . . Melee . | . . . Knockbacks . | . . . Impact . | . . . Kinetic . | . . . Secondary . | . . . Self-Inflicted Damage . | . . . Shots . | . . . Rammed . | . . . Targets Rammed . | . . . Kicked . | . . . Crushed . | . . . Highest Temperature 239 | . 239 . Average Temperature 49 | . 49 . Received Heat Transfer 285 | . 237 48 Siege Activations . | . . . Martial Activations . | . . . Shielding Activations . | . . . Robots Disrupted . | . . . Combat Hostiles . | . . . Robots Corrupted . | . . . Combat Hostiles . | . . . Parts Fried . | . . . Impact Corruptions . | . . . Robots Melted . | . . . Combat Hostiles . | . . . Parts Melted 2 | . 2 . Heat Transferred 1776 | . 1776 . Parts Sabotaged . | . . . Parts Stolen . | . . . Parts Stripped . | . . . Power Chain Reactions . | . . . Alert | -11 -10 -10 ------- Run | Yrd Mat Sub Maximum Alert Level 1 | . 1 . Low Security (%) 87 | 100 87 . Level 1 12 | . 12 . Level 2 . | . . . Level 3 . | . . . Level 4 . | . . . Level 5 . | . . . High Security . | . . . Max Security . | . . . Peak Influence 220 | . 220 . Initial . | . . . Average 103 | . 106 . Influence Increases 482 | . 482 . Destroy 0b10 Robot/C 260 | . 260 . Destroy 0b10 Robot/NC 45 | . 45 . Destroy Leader 58 | . 58 . Successful Hack 14 | . 14 . Disable Machine 30 | . 30 . Lose Combat Pursuer 75 | . 75 . Influence Decreases 482 | . 438 44 Entered New Map 22 | . . 22 Time Decay 410 | . 388 22 Lost Part 50 | . 50 . Squads Dispatched 2 | . 2 . Investigation . | . . . Extermination . | . . . Reinforcement 2 | . 2 . Assault . | . . . Garrison . | . . . Intercept . | . . . Searches Triggered . | . . . Construction Impeded . | . . . Haulers Reinforced . | . . . Active Scanning Responses . | . . . Cargo Convoy Interrupts . | . . . Stealth | -11 -10 -10 --------- Run | Yrd Mat Sub Distress Signals 1 | . 1 . Communications Jammed . | . . . Distress Signals . | . . . Times Spotted 32 | . 29 3 Peak Tracking Total 9 | . 9 2 Tactical Retreats 2 | . 2 . Traps | -11 -10 -10 ------- Run | Yrd Mat Sub Traps Triggered 1 | . 1 . Indirectly . | . . . Trap Hack Attempts . | . . . Triggered . | . . . Disarmed . | . . . Reprogrammed . | . . . Reused . | . . . Traps Extracted . | . . . Installed . | . . . Triggered . | . . . Machines | -11 -10 -10 ---------- Run | Yrd Mat Sub Machines Disabled 2 | . 2 . Max in Single Turn 1 | . 1 . Machines Repaired . | . . . Machines Dismantled . | . . . Machines Sabotaged . | . . . Overloaded Fab Kills . | . . . Hacking | -11 -10 -10 --------- Run | Yrd Mat Sub Machines Accessed 7 | . 7 . Terminals 5 | . 5 . Fabricators . | . . . Repair Stations 1 | . 1 . Recycling Units 1 | . 1 . Scanalyzers . | . . . Garrison Access . | . . . Total Hacks 18 | . 18 . Successful 6 | . 6 . Failed 12 | . 12 . Catastrophic 3 | . 3 . Database Lockouts . | . . . Manual 11 | . 11 . Terminals 12 | . 12 . Fabricators . | . . . Repair Stations 3 | . 3 . Recycling Units 3 | . 3 . Scanalyzers . | . . . Garrison Access . | . . . Terminal Hacks . | . . . Fabricator Hacks . | . . . Repair Station Hacks 1 | . 1 . Refit 1 | . 1 . Recycling Unit Hacks 1 | . 1 . Retrieve Components 1 | . 1 . Scanalyzer . | . . . Garrison Access Hacks . | . . . Unauthorized Hacks 4 | . 4 . Terminals 4 | . 4 . Botnet 3 | . 3 . Operators 1 | . 1 . Fabricators . | . . . Repair Stations . | . . . Recycling Units . | . . . Scanalyzers . | . . . Garrison Access . | . . . Data Cores Recovered 1 | . 1 . Used . | . . . Hacking Detections 7 | . 7 . Full Trace Events . | . . . Feedback Events . | . . . Feedback Blocked . | . . . Robot Schematics Acquired . | . . . Robots Built . | . . . Authchips . | . . . Time . | . . . Total Robot Build Rating . | . . . Part Schematics Acquired . | . . . Parts Built . | . . . Authchips . | . . . Time . | . . . Total Part Build Rating . | . . . Part Studies Acquired . | . . . Parts Repaired . | . . . Time . | . . . Parts Recycled . | . . . Recycled Matter . | . . . Retrieved Matter . | . . . Retrieved Components . | . . . Parts Scanalyzed . | . . . Part Schematics Acquired . | . . . Parts Damaged . | . . . Bothacking | -11 -10 -10 ------------ Run | Yrd Mat Sub Used RIF Installer . | . . . Robots Hacked . | . . . Non-combat . | . . . Combat . | . . . Robot Hacks Applied . | . . . Relay Couplers Released . | . . . Fabnet Peak Effective % . | . . . Robots Rewired . | . . . Allies Hacked . | . . . Hacks Repelled . | . . . Allies | -11 -10 -10 -------- Run | Yrd Mat Sub Total Allies . | . . . Largest Group . | . . . Highest-Rated Group . | . . . Highest-Rated Ally . | . . . Total Orders . | . . . Ally Attacks . | . . . Total Damage . | . . . Kills . | . . . Allies Corrupted . | . . . Allies Melted . | . . . Intel | -11 -10 -10 ------- Run | Yrd Mat Sub Active Infowar (turns) 1136 | . 943 193 Seismic 1136 | . 943 193 Robot Analysis Total . | . . . Derelict Logs Recovered . | . . . Drone Launches . | . . . Drone Recoveries . | . . . Exploration | -11 -10 -10 ------------- Run | Yrd Mat Sub Turns Passed 1318 | 33 1062 223 Spaces Moved 810 | 30 653 127 Core 3 | 3 . . Treads . | . . . Legs . | . . . Wheels 807 | 27 653 127 Hover . | . . . Flight . | . . . Fastest Speed 50 | 50 80 140 Average Speed 117 | 77 114 140 Slowest Speed 200 | 80 200 140 Overloaded Moves . | . . . Propulsion Burnouts . | . . . Robots Hopped . | . . . Potential Cave-ins . | . . . Cave-ins Triggered . | . . . Exploration Rate (%) 31 | 3 77 13 Regions Visited 2 Branch Regions 1 Pre-discovered Areas . | . . . Known Exits Taken . | . . . Unknown Exits Taken 2 | 1 1 . Scrap Searched . | . . . Spaces Dug . | . . . Terrain Destroyed . | . . . Melee . | . . . Projectile . | . . . AOE . | . . . Terrain Rammed . | . . . Walls Destroyed . | . . . Machines Disabled . | . . . Actions | -11 -10 -10 --------- Run | Yrd Mat Sub Total 1011 | 36 821 154 Wait 67 | . 56 11 Move 808 | 29 652 127 Hop . | . . . Pick Up 12 | 1 11 . Fast Attach 13 | 6 6 1 Attach 5 | . 5 . Detach 2 | . 2 . Swap 9 | . 7 2 Drop 8 | . 7 1 Fire 85 | . 73 12 Melee 2 | . 2 . Ram . | . . . Kick . | . . . Crush . | . . . Escape Stasis . | . . . Rewire . | . . . Trap . | . . . Miscellaneous . | . . . Route ------- -11/Scrapyard -10/Materials (discovered 4 exits: [*Mat x2] / [*Min] / [*Sub]) -10/Subcaves History --------- Turn | Location | Event 9 | -11/Scrapyard | Discovered new exit (range 16) 34 | -11/Scrapyard | Entered Materials 115 | -10/Materials | Discovered new exit (range 16) 309 | -10/Materials | Build established: Mutant 482 | -10/Materials | Core integrity fell below 50% 510 | -10/Materials | Discovered new exit (range 16) 789 | -10/Materials | Discovered new exit (range 8) 1082 | -10/Materials | Discovered new exit (range 11) 1096 | -10/Materials | Entered Subcaves 1097 | -10/Subcaves | Approached by a straggling Scientist 1213 | -10/Subcaves | Core integrity fell below 20% 1319 | -10/Subcaves | Destroyed by SV-K17(R) with Subdweller Laser Last Messages --------------- beginning to lose hope I'd never make it past all the Subs lurking out here." 01100_ QB-KX4(c): "Hey, let me tag along and I can get us both out of this nasty situation. At least I think I can... The group I got separated from was talking about a shortcut back to the UFD." QB-KX4(c): "I think it's somewhere north of here" 01222_ 5V-3YS(R) destroyed. 01226_ Subatomizers dissect the Disposable Heat Sink. 01226_ Acquired 13 matter. 01229_ Dropped Shotgun. 01230_ Acquired Battle Cannon. 01238_ Subatomizers dissect the Disposable Heat Sink. QB-KX4(c): "I think it's somewhere northwest of here" QB-KX4(c): "I think it's somewhere west of here" Map ----- +----------------------------------------------------+ | ?????????????????????????????????????????????????? | | ?????????????????????????????????????????????????? | | ?????????????????????????????????????????????????? | | ?????????????????????????????????????????????????? | | ?????????????????????????????????????????????????? | | ?????????????????????????????????????????????????? | | ?????????????????????????????????????????????????? | | ?????????????????????????????????????????????????? | | ?????????????????????????????????????????????????? | | ?????????????????????????????????????????????????? | | ?????????????????????????????????????????????????? | | ?????????????????????????????#???????#???????????? | | ????????????????????????????#% ????? ???????????? | | ????????????????????????#### R ????" ???????????? | | ???????????????????????## ?????"" ???????????? | | ?????????????????????### % ?????" ???????????? | | ?????????????????##### #?????# ##?????????? | | ?????????????????? ##????# "#####?????? | | ?????????????????? ##???# " #?????? | | ???????????????????# ##?##" #?????? | | ????????????????????# #?#""""" #?????? | | ????????????????????# #?#""""""""#?????? | | ????????????????????# #?## " """#?????? | | ???????????????????## ###" " ##????? | | ??????????????????## R""" #????? | | ??????????????????# @ ##???? | | ??????????? ### #???? | | ?????????? ??????# ## #???? | | ??????????? # ??????????# ### ### #???? | | ?????????????????????????# #?# #? #???? | | ????????????????????????# #?## #?? #??? | | ??????????????????????? #??## #??? #??? | | ?????????????????????? ???## ###????#??? | | ????????????????????? ###???## #?????????? | | ????????????????????######??????# #######???? | | ????????????????????????????????# #???? | | ???????????????????????????????## #???? | | ??????????????????????????????## ## #???? | | ??????????????????????#####?### ##### #???? | | ?????????????????????## #?# ##???? #???? | | ????????????????????## ### ###### #???? | | ??????????????????### ## ##???? | | ????????######???## #?# #????? | | ????????# ## #??## ### #???? | | ????????# #### [ ## #???? | | ????????# ! ### #?###???? | | ????????# ## ## ## #????#???????? | | ????????# ##### ## ####? ?????????? | | ???????## ##???# ## #????# ??????? | | ######## ###???? ## #?????# ???????? | +----------------------------------------------------+ Best States ------------- Heat Dissipation 25 Energy Generation 10 Energy Capacity 250 Matter Stores 300 Matter Capacity 300 Sight Range 16 Terrain Scan Density 10 Armor Coverage 80 Evasion (%) 44 Item Schematics ----------------- None Robot Schematics ------------------ None Fabricated ------------ Nothing Repaired ---------- Nothing Studied --------- None Alien Tech Used ----------------- None Achievements -------------- None Challenges ------------ None Game ------ Seed MicrowarpEncryptedGriptreads Manual? 0 Play Time 00:11:20 Cumulative 382.5 hours Start 2026.01.06 @ 15:56:22 End 2026.01.06 @ 16:07:05 Sessions 1 Manual Loads 0 Difficulty Rogue Special Mode None Game No. 134 Rogue 134 Adventurer 0 Explorer 0 Win Type - Total 9 Types 5/0/0/1/0/0/0/1/0/2 Lore% 82 Gallery% 79 Achievement% 68 Wizard Run 0 Options --------- Layout 1 ASCII 0 Keyboard 0 Movement Mouse Keybinds 0 Fullscreen 2 Font 32/SmallcapsGlow Map View 50x35 Zoom Use 0% Tactical HUD 1 Map Filters NONE Filters NONE Steam 1 RUN: 56662e1e-e2cc-4715-b2b4-05fcaed58a30